bitfinex-derivatives/quotes_BTCF0:USTF0_20260214
["timestamp","ask_amount","ask_price","bid_price","bid_amount"]
[1771068422755,0.01424,70263.0,70256.0,0.014241]
[1771068422962,0.01424,70263.0,70257.0,0.014241]
[1771068423450,0.014239,70264.0,70247.0,0.14236]
[1771068423656,0.33666035,70263.0,70250.0,0.01456]
[1771068423856,0.014242,70254.0,70250.0,0.01456]
[1771068424053,0.014242,70253.0,70248.0,0.01456]
[1771068424254,0.028482,70258.0,70243.0,0.014244]
[1771068424459,0.028482,70258.0,70241.0,0.014244]
[1771068424460,0.014242,70249.0,70244.0,0.01456]
[1771068424755,0.014242,70250.0,70244.0,0.028803]
[1771068425058,0.0001104,70249.0,70245.0,0.01456]
[1771068425363,0.0143524,70249.0,70243.0,0.014244]
[1771068425562,0.014242,70252.0,70217.0,0.34458828]
[1771068425563,0.33666035,70251.0,70217.0,0.34458828]
[1771068425764,0.14236,70252.0,70238.0,0.014245]
[1771068425765,0.014243,70248.0,70238.0,0.014245]
[1771068426067,0.014244,70241.0,70235.0,0.35883328]
[1771068426266,0.014242,70249.0,70239.0,0.014244]
[1771068426471,0.01456,70250.0,70243.0,0.014244]
[1771068426671,0.014243,70249.0,70242.0,0.014244]
[1771068426861,0.014243,70249.0,70243.0,0.014244]
[1771068427168,0.014243,70249.0,70244.0,0.014243]
[1771068427471,0.014242,70253.0,70237.0,0.014245]
[1771068427775,0.014244,70242.0,70238.0,0.15696]
[1771068427972,0.014244,70242.0,70231.0,0.1424]
[1771068428275,0.014246,70234.0,70232.0,0.01456]
[1771068428466,0.014244,70239.0,70227.0,0.1424]
[1771068428667,0.014244,70239.0,70228.0,0.01456]
[1771068428970,0.014247,70228.0,70222.0,0.156648]
[1771068429169,0.014247,70228.0,70223.0,0.01456]
[1771068429364,0.014247,70226.0,70223.0,0.01456]
[1771068429565,0.014247,70226.0,70220.0,0.014248]
[1771068429772,0.014248,70223.0,70221.0,0.01456]
[1771068430161,0.014248,70222.0,70218.0,0.1424]
[1771068430468,0.014247,70226.0,70221.0,0.014248]
[1771068430668,0.014247,70225.0,70218.0,0.014249]
[1771068430871,0.014247,70225.0,70219.0,0.01456]
[1771068431069,0.014248,70224.0,70219.0,0.01456]
[1771068431270,0.01456,70232.0,70220.0,0.01456]
[1771068431470,0.014247,70226.0,70221.0,0.01456]
[1771068431679,0.014247,70228.0,70221.0,0.01456]
[1771068431680,0.014248,70223.0,70221.0,0.01456]
[1771068432068,0.014248,70223.0,70217.0,0.014249]
[1771068432269,0.014248,70223.0,70218.0,0.01456]
[1771068432469,0.014248,70223.0,70217.0,0.014249]
[1771068432676,0.014247,70226.0,70220.0,0.014248]
[1771068432873,0.014247,70227.0,70221.0,0.014248]
[1771068433170,0.01456,70232.0,70218.0,0.01456]
[1771068433171,0.014248,70224.0,70218.0,0.028809]
[1771068433369,0.014247,70225.0,70219.0,0.014248]
[1771068433576,0.014247,70227.0,70221.0,0.014248]
[1771068433771,0.014247,70226.0,70221.0,0.014248]
[1771068434171,0.014247,70226.0,70220.0,0.014248]
[1771068434378,0.014247,70226.0,70221.0,0.028808]
[1771068434977,0.014247,70225.0,70221.0,0.01456]
[1771068435178,0.014247,70225.0,70221.0,0.007303]
[1771068435379,0.014246,70231.0,70221.0,0.007303]
[1771068435672,0.014247,70225.0,70220.0,0.014248]
[1771068435873,0.014246,70231.0,70221.0,0.028808]
[1771068436080,0.014247,70226.0,70221.0,0.028808]
[1771068436271,0.014246,70231.0,70221.0,0.028808]
[1771068436466,0.01456,70232.0,70227.0,0.014247]
[1771068436671,0.014245,70236.0,70226.0,0.014247]
[1771068436874,0.014246,70233.0,70227.0,0.014247]
[1771068437180,0.01456,70235.0,70227.0,0.014247]
[1771068437379,0.01456,70235.0,70224.0,0.014247]
[1771068437380,0.014246,70231.0,70225.0,0.014247]
[1771068437571,0.014246,70233.0,70225.0,0.014247]
[1771068437767,0.014246,70231.0,70225.0,0.014247]
[1771068437973,0.014246,70233.0,70226.0,0.014247]
[1771068438176,0.01456,70235.0,70226.0,0.014247]
[1771068438372,0.028492,70233.0,70223.0,0.014248]
[1771068438577,0.014247,70229.0,70224.0,0.014247]
[1771068438777,0.014246,70233.0,70224.0,0.014247]
[1771068439276,0.014246,70229.0,70224.0,0.014247]
[1771068439477,0.014246,70230.0,70224.0,0.014247]
[1771068439674,0.014245,70234.0,70224.0,0.014247]
[1771068439879,0.014246,70230.0,70224.0,0.014247]
[1771068440072,0.014246,70232.0,70224.0,0.014247]
[1771068440381,0.014246,70230.0,70225.0,0.014247]
[1771068440678,0.33666035,70252.0,70233.0,0.34458828]
[1771068440881,0.014242,70249.0,70240.0,0.014244]
[1771068441073,0.014243,70245.0,70239.0,0.014244]
[1771068441375,0.014244,70242.0,70236.0,0.014245]
[1771068441578,0.014244,70242.0,70220.0,0.34458828]
[1771068441579,0.35122035,70242.0,70220.0,0.34458828]
[1771068441778,0.014246,70230.0,70222.0,0.014248]
[1771068441981,0.014246,70232.0,70222.0,0.028808]
[1771068442172,0.014247,70227.0,70220.0,0.014248]
[1771068442372,0.014247,70227.0,70221.0,0.01456]
[1771068442583,0.014246,70231.0,70221.0,0.01456]
[1771068442781,0.014247,70227.0,70221.0,0.01456]
[1771068442979,0.014247,70225.0,70221.0,0.01456]
[1771068443372,0.014247,70225.0,70215.0,0.014249]
[1771068443373,0.33666035,70230.0,70214.0,0.014249]
[1771068443682,0.014247,70228.0,70222.0,0.014248]
[1771068443874,0.01456,70233.0,70222.0,0.028808]
[1771068444076,0.014247,70227.0,70222.0,0.01456]
[1771068444277,0.014247,70224.0,70223.0,0.01456]
[1771068444579,0.014248,70223.0,70218.0,0.14248]
[1771068444778,0.014247,70225.0,70219.0,0.01456]
[1771068445282,0.014247,70224.0,70219.0,0.01456]
[1771068445681,0.014247,70229.0,70221.0,0.014248]
[1771068445878,0.014247,70226.0,70221.0,0.014248]
[1771068446583,0.014246,70231.0,70221.0,0.014248]
[1771068446883,0.014247,70229.0,70222.0,0.014248]
[1771068447074,0.014246,70231.0,70223.0,0.01456]
[1771068447274,0.014245,70237.0,70225.0,0.014247]
[1771068447475,0.014245,70235.0,70229.0,0.014246]
[1771068447676,0.01456,70240.0,70230.0,0.028806]
[1771068447876,0.014245,70236.0,70230.0,0.028806]
[1771068448076,0.01456,70240.0,70230.0,0.028806]
[1771068448285,0.014246,70234.0,70230.0,0.01456]
[1771068448486,0.014244,70239.0,70230.0,0.01456]
[1771068448680,0.014245,70236.0,70231.0,0.014246]
[1771068448879,0.01456,70240.0,70231.0,0.014246]
[1771068449075,0.014244,70241.0,70235.0,0.014245]
[1771068449281,0.028803,70245.0,70237.0,0.014245]
[1771068449480,0.014244,70241.0,70236.0,0.01456]
[1771068449686,0.014243,70244.0,70236.0,0.01456]
[1771068449881,0.00688916,70245.0,70229.0,0.34458828]
[1771068450078,0.014246,70233.0,70230.0,0.15704]
[1771068450278,0.014245,70236.0,70229.0,0.01456]
[1771068450583,0.014245,70236.0,70220.0,0.014248]
[1771068450584,0.014246,70234.0,70228.0,0.014247]
[1771068450785,0.014246,70233.0,70229.0,0.01456]
[1771068450977,0.014246,70234.0,70229.0,0.028806]
[1771068451178,0.014246,70234.0,60814.0,0.04653024]
[1771068451179,0.014246,70230.0,70224.0,0.014247]
[1771068451484,0.014245,70236.0,70231.0,0.014246]
[1771068451681,0.014245,70236.0,70230.0,0.014246]
[1771068451883,0.014245,70235.0,70230.0,0.014246]
[1771068452283,0.014246,70232.0,70229.0,0.01456]
[1771068452479,0.014247,70227.0,70224.0,0.01456]
[1771068452675,0.014247,70225.0,70223.0,0.01456]
[1771068452879,0.014247,70226.0,70223.0,0.01456]
[1771068453084,0.014248,70223.0,70219.0,0.14248]
[1771068453284,0.014248,70223.0,70220.0,0.01456]
[1771068454281,0.014248,70223.0,70221.0,0.01456]
[1771068454484,0.014248,70223.0,70222.0,0.01456]
[1771068455575,0.014248,70224.0,70222.0,0.01456]
[1771068456189,0.014248,70223.0,70222.0,0.01456]
[1771068456484,0.014248,70223.0,70221.0,0.01456]
[1771068456688,0.014248,70222.0,70221.0,0.01456]
[1771068457184,0.014248,70222.0,70217.0,0.014249]
[1771068457400,0.014248,70222.0,70218.0,0.01456]
[1771068457590,0.014247,70226.0,70218.0,0.01456]
[1771068457788,0.014248,70224.0,70219.0,0.014248]
[1771068457985,0.14248,70244.0,70220.0,0.36248505]
[1771068458286,0.01456,70254.0,70247.0,0.014243]
[1771068458485,0.01456,70253.0,70248.0,0.014243]
[1771068458682,0.01456,70252.0,70250.0,0.014242]
[1771068458886,0.014241,70255.0,70250.0,0.014242]
[1771068459086,0.014241,70254.0,70249.0,0.014242]
[1771068459388,0.01456,70253.0,70249.0,0.014242]
[1771068459586,0.01456,70252.0,70250.0,0.014242]
[1771068459786,0.01456,70251.0,70250.0,0.014242]
[1771068460090,0.014241,70257.0,70252.0,0.014242]
[1771068460288,0.15704,70256.0,70253.0,0.014241]
[1771068460486,0.14248,70256.0,70253.0,0.014241]
[1771068460682,0.01456,70255.0,70254.0,0.014241]
[1771068460883,0.01456,70255.0,70208.0,0.63602262]
[1771068460884,0.01456,70255.0,70239.0,0.32250421]
[1771068461188,0.014242,70253.0,70245.0,0.014243]
[1771068461385,0.014242,70251.0,70246.0,0.014243]
[1771068461583,0.014242,70249.0,70244.0,0.014243]
[1771068462089,0.014244,70244.0,70237.0,0.014245]
[1771068462285,0.01456,70245.0,70241.0,0.014244]
[1771068462688,0.01456,70245.0,70240.0,0.014244]
[1771068462893,0.014242,70252.0,70247.0,0.014243]
[1771068463082,0.15704,70251.0,70247.0,0.014243]
[1771068463487,0.171282,70251.0,70246.0,0.014243]
[1771068463680,0.014242,70250.0,70243.0,0.014243]
[1771068463886,0.014243,70245.0,70236.0,0.15704]
[1771068464192,0.01456,70245.0,70237.0,0.014245]
[1771068464392,0.01456,70245.0,70242.0,0.014244]
[1771068464594,0.01456,70245.0,70236.0,0.15704]
[1771068464595,0.01456,70245.0,70237.0,0.014245]
[1771068464889,0.01456,70245.0,70241.0,0.014244]
[1771068465080,0.014244,70244.0,70236.0,0.014245]
[1771068465287,0.014244,70242.0,70235.0,0.014245]
[1771068465488,0.01456,70241.0,70236.0,0.014245]
[1771068465686,0.01456,70241.0,70237.0,0.014245]
[1771068465994,0.01456,70241.0,70235.0,0.014245]
[1771068466192,0.01456,70241.0,70237.0,0.014245]
[1771068466590,0.01456,70241.0,70238.0,0.014245]
[1771068466890,0.01456,70241.0,70239.0,0.014244]
[1771068467089,0.014243,70246.0,70240.0,0.014244]
[1771068467394,0.014243,70244.0,70239.0,0.014244]
[1771068467797,0.01456,70245.0,70193.0,0.33675821]
[1771068467798,0.33104766,70217.0,70193.0,0.33675821]
[1771068468097,0.01425,70213.0,70208.0,0.014251]
[1771068468295,0.02881,70212.0,70206.0,0.014251]
[1771068468595,0.01425,70211.0,70202.0,0.33675621]
[1771068468791,0.00011339,70210.0,70203.0,0.014252]
[1771068469191,0.00011339,70210.0,70202.0,0.33675621]
[1771068469393,0.014251,70209.0,70202.0,0.33675621]
[1771068469592,0.014251,70207.0,70202.0,0.33675621]
[1771068469995,0.014251,70209.0,70202.0,0.33675621]
[1771068470191,0.014252,70205.0,70201.0,0.01456]
[1771068470396,0.014252,70203.0,70201.0,0.01456]
[1771068470589,0.01467339,70210.0,70202.0,0.01456]
[1771068470792,0.014251,70205.0,70201.0,0.01456]
[1771068470987,0.014252,70202.0,70196.0,0.014253]
[1771068471489,0.014251,70209.0,70193.0,0.32250421]
[1771068471490,0.014252,70203.0,70198.0,0.014253]
[1771068471694,0.014252,70203.0,70198.0,0.028813]
[1771068472094,0.014252,70203.0,70198.0,0.01456]
[1771068472596,0.014252,70202.0,70198.0,0.01456]
[1771068472997,0.014252,70201.0,70198.0,0.01456]
[1771068473389,0.014252,70202.0,70198.0,0.01456]
[1771068474898,0.014252,70202.0,70193.0,0.014254]
[1771068475100,0.014253,70200.0,70195.0,0.028813]
[1771068475398,0.014253,70199.0,70191.0,0.014254]
[1771068475603,0.014253,70195.0,70188.0,0.014255]
[1771068475803,0.014253,70195.0,70190.0,0.014254]
[1771068476301,0.014255,70189.0,70187.0,0.01456]
[1771068476502,0.014255,70190.0,70186.0,0.01456]
[1771068476706,0.00012868,70194.0,70187.0,0.014255]
[1771068476998,0.00012868,70194.0,70192.0,0.014254]
[1771068478894,0.01456,70193.0,70183.0,0.014256]
[1771068479205,0.014254,70190.0,70184.0,0.014255]
[1771068479398,0.01456,70189.0,70182.0,0.014256]
[1771068479606,0.014255,70188.0,70182.0,0.014256]
[1771068480100,0.014255,70188.0,70178.0,0.01456]
[1771068480303,0.014255,70188.0,70178.0,0.028817]
[1771068480603,0.014255,70188.0,70182.0,0.014256]
[1771068480802,0.028815,70189.0,70183.0,0.014256]
[1771068481210,0.014255,70188.0,70183.0,0.014256]
[1771068481502,0.01456,70189.0,70170.0,0.34466421]
[1771068481802,0.014257,70180.0,70174.0,0.014258]
[1771068482007,0.014256,70182.0,70174.0,0.01456]
[1771068482197,0.014258,70170.0,70169.0,0.14252]
[1771068482403,0.014258,70174.0,70169.0,0.05516]
[1771068482704,0.014258,70173.0,70167.0,0.028819]
[1771068482898,0.014258,70172.0,70167.0,0.028819]
[1771068483100,0.014258,70173.0,70167.0,0.01456]
[1771068483303,0.028817,70177.0,70169.0,0.014259]
[1771068483506,0.043074,70177.0,70169.0,0.014259]
[1771068483706,0.028817,70177.0,70171.0,0.028516]
[1771068483904,0.028817,70177.0,70171.0,0.014258]
[1771068484106,0.014258,70173.0,70167.0,0.014259]
[1771068484306,0.028818,70172.0,70166.0,0.014259]
[1771068484704,0.01456,70172.0,70167.0,0.014259]
[1771068485501,0.028818,70172.0,70161.0,0.02882]
[1771068485704,0.028818,70172.0,70165.0,0.014259]
[1771068486302,0.01456,70172.0,70165.0,0.014259]
[1771068486503,0.01445056,70172.0,70168.0,0.014259]
[1771068486905,0.15701056,70172.0,70159.0,0.014261]
[1771068487104,0.014259,70170.0,70161.0,0.01426]
[1771068487306,0.01456,70171.0,70151.0,0.01456]
[1771068487307,0.014259,70169.0,70159.0,0.014261]
[1771068487603,0.014259,70169.0,70161.0,0.01426]
[1771068487809,0.014259,70169.0,70162.0,0.01426]
[1771068488003,0.014258,70173.0,70162.0,0.35892421]
[1771068488209,0.014258,70171.0,70163.0,0.35892421]
[1771068488399,0.014259,70168.0,70163.0,0.01456]
[1771068489108,0.014259,70167.0,70163.0,0.01456]
[1771068489301,0.014258,70173.0,70163.0,0.01426]
[1771068489506,0.014258,70170.0,70162.0,0.01426]
[1771068489809,0.014258,70170.0,70160.0,0.35922421]
[1771068490010,0.014259,70167.0,70160.0,0.37348421]
[1771068490203,0.014259,70169.0,70161.0,0.01426]
[1771068490411,7.098e-05,70168.0,70161.0,0.01426]
[1771068490709,0.01432998,70168.0,70162.0,0.01426]
[1771068490913,0.014259,70167.0,70162.0,0.01426]
[1771068491509,0.014259,70167.0,70161.0,0.01426]
[1771068491700,0.014259,70167.0,70162.0,0.01426]
[1771068491910,0.014259,70168.0,70162.0,0.01426]
[1771068492202,0.014259,70165.0,70160.0,0.01456]
[1771068492406,0.014259,70166.0,70160.0,0.02882]
[1771068492602,0.01426,70165.0,70160.0,0.01456]
[1771068493012,0.014259,70167.0,70162.0,0.01426]
[1771068493508,0.014259,70167.0,70160.0,0.00023002]
[1771068493708,0.014259,70166.0,70160.0,0.01449002]
[1771068494208,0.01426,70165.0,70160.0,0.00023002]
[1771068494405,0.014259,70167.0,70161.0,0.01426]
[1771068495012,0.01456,70171.0,70160.0,0.00023002]
[1771068495013,0.014258,70170.0,70165.0,0.014259]
[1771068495202,0.014259,70169.0,70164.0,0.01426]
[1771068495406,0.028818,70171.0,70165.0,0.014259]
[1771068495611,0.014256,70183.0,70161.0,0.34466421]
[1771068495912,0.35735525,70181.0,70166.0,0.156859]
[1771068496213,0.014257,70176.0,70168.0,0.014259]
[1771068496508,0.014257,70175.0,70167.0,0.028819]
[1771068496706,0.014258,70175.0,70167.0,0.01456]
[1771068497415,0.014258,70173.0,70167.0,0.01456]
[1771068497613,0.028818,70172.0,70164.0,0.01456]
[1771068497811,0.01456,70172.0,70164.0,0.01456]
[1771068498210,0.014258,70171.0,70164.0,0.01456]
[1771068498613,0.01456,70172.0,70164.0,0.02882]
[1771068499013,0.01456,70172.0,70166.0,0.014259]
[1771068499203,0.01456,70172.0,70164.0,0.01456]
[1771068499405,0.01456,70172.0,70164.0,0.02882]
[1771068499604,0.014258,70171.0,70164.0,0.01456]
[1771068499807,0.01456,70172.0,70164.0,0.01456]
[1771068500013,0.028818,70172.0,70164.0,0.01456]
[1771068500217,0.028818,70172.0,70164.0,0.02882]
[1771068500610,0.014258,70171.0,70164.0,0.01456]
[1771068500812,0.014258,70170.0,70164.0,0.01456]
[1771068502419,0.014259,70169.0,70164.0,0.01456]
[1771068502719,0.014259,70168.0,70164.0,0.01456]
[1771068503416,0.014259,70169.0,70164.0,0.01456]
[1771068503616,0.34309925,70169.0,70160.0,0.02882]
[1771068503916,0.014259,70167.0,70160.0,0.02882]
[1771068504316,0.014259,70167.0,70161.0,0.01426]
[1771068504716,0.014259,70167.0,70160.0,0.01456]
[1771068504717,0.014259,70166.0,70160.0,0.01456]
[1771068505117,0.014259,70165.0,70160.0,0.01456]
[1771068505921,0.014258,70171.0,70160.0,0.01456]
[1771068505922,0.014258,70173.0,70164.0,0.01426]
[1771068506123,0.014259,70170.0,70161.0,0.01426]
[1771068506324,0.014259,70170.0,70160.0,0.02882]
[1771068506517,0.014259,70167.0,70160.0,0.02882]
[1771068506918,0.01456,70168.0,70158.0,0.171421]
[1771068507124,0.01426,70161.0,70155.0,0.014261]
[1771068507325,0.014261,70160.0,70155.0,0.01456]
[1771068508726,0.01456,70164.0,70160.0,0.01426]
[1771068508924,0.02882,70164.0,70158.0,0.014261]
[1771068509125,0.02882,70164.0,70155.0,0.01456]
[1771068509126,0.01426,70161.0,70155.0,0.01456]
[1771068509330,0.014261,70160.0,70155.0,0.01456]
[1771068509523,0.01426,70161.0,70155.0,0.014261]
[1771068509722,0.01426,70161.0,70153.0,0.014262]
[1771068509928,0.01426,70161.0,70155.0,0.014261]
[1771068510425,0.01426,70161.0,70156.0,0.014261]
[1771068511033,0.01426,70162.0,70156.0,0.014261]
[1771068511325,0.014261,70159.0,70153.0,0.014262]
[1771068511730,0.01426,70162.0,70156.0,0.014261]
[1771068511923,0.01426,70161.0,70155.0,0.014261]
[1771068512125,0.01456,70160.0,70155.0,0.014261]
[1771068512428,0.028821,70160.0,70154.0,0.014262]
[1771068512632,0.014261,70159.0,70154.0,0.014262]
[1771068512830,0.014261,70157.0,70152.0,0.01456]
[1771068513228,0.014261,70157.0,70151.0,0.014262]
[1771068513835,0.01456,70160.0,70154.0,0.014262]
[1771068514234,0.01456,70160.0,70155.0,0.014261]
[1771068514431,0.01456,70160.0,70154.0,0.014262]
[1771068514731,0.1426,70175.0,70164.0,0.34871852]
[1771068514935,0.014259,70169.0,70164.0,0.34871852]
[1771068515138,0.028818,70170.0,70164.0,0.014259]
[1771068515333,0.01456,70170.0,70165.0,0.014259]
[1771068515637,0.01456,70171.0,70167.0,0.014259]
[1771068515835,0.014257,70177.0,70135.0,2.05482262]
[1771068515836,0.1426,70187.0,70183.0,0.014256]
[1771068516040,0.014256,70185.0,70177.0,0.014257]
[1771068516338,0.028815,70186.0,70181.0,0.014256]
[1771068516639,0.01456,70186.0,70182.0,0.014256]
[1771068516934,0.01456,70185.0,70183.0,0.014256]
[1771068517140,0.014254,70194.0,70178.0,0.014257]
[1771068517338,0.014254,70193.0,70188.0,0.014255]
[1771068517533,0.01456,70194.0,70188.0,0.014255]
[1771068517736,0.014253,70197.0,70192.0,0.014254]
[1771068517939,0.01456,70196.0,70192.0,0.014254]
[1771068519237,0.014254,70191.0,70184.0,0.014255]
[1771068519438,0.01456,70196.0,70185.0,0.01456]
[1771068519642,0.028813,70196.0,70190.0,0.014254]
[1771068520338,0.014251,70206.0,70188.0,0.3388568]
[1771068520538,0.01456,70205.0,70201.0,0.014252]
[1771068520743,0.028812,70204.0,70198.0,0.014253]
[1771068521042,0.1426,70206.0,70200.0,0.014252]
[1771068521243,0.014251,70207.0,70202.0,0.014252]
[1771068521439,0.01456,70206.0,70203.0,0.014252]
[1771068521635,0.3253133,70227.0,70205.0,0.014251]
[1771068521844,0.014248,70221.0,70214.0,0.014249]
[1771068522034,0.014249,70219.0,70214.0,0.014249]
[1771068522237,0.014251,70207.0,70201.0,0.014252]
[1771068522442,0.014253,70196.0,70186.0,0.3388568]
[1771068522744,0.01456,70201.0,70190.0,0.3388568]
[1771068522944,0.01456,70204.0,70202.0,0.014252]
[1771068523151,0.01456,70207.0,70203.0,0.014252]
[1771068523341,0.014248,70220.0,70201.0,0.01456]
[1771068523544,0.014251,70209.0,70202.0,0.014252]
[1771068523850,0.014251,70208.0,70201.0,0.014252]
[1771068524147,0.01425,70210.0,70203.0,0.014252]
[1771068524338,0.01456,70211.0,70207.0,0.014251]
[1771068524542,0.01456,70211.0,70206.0,0.014251]
[1771068524747,0.01425,70213.0,70206.0,0.014251]
[1771068524947,0.01425,70210.0,70205.0,0.01456]
[1771068525151,0.14256,70217.0,70205.0,0.01456]
[1771068525152,0.014251,70209.0,70205.0,0.01456]
[1771068525541,0.01425,70212.0,70205.0,0.01456]
[1771068525745,0.01456,70213.0,70207.0,0.014251]
[1771068526042,0.014248,70221.0,70207.0,0.3388568]
[1771068526240,0.014244,70239.0,70214.0,0.014249]
[1771068526241,0.01456,70220.0,70214.0,0.014249]
[1771068526446,0.014247,70229.0,70211.0,0.3534168]
[1771068526643,0.01456,70228.0,70219.0,0.014248]
[1771068526848,0.028807,70228.0,70223.0,0.014248]
[1771068527045,0.014247,70229.0,70223.0,0.014248]
[1771068527248,0.014247,70227.0,70221.0,0.014248]
[1771068527449,0.01456,70226.0,70223.0,0.014248]
[1771068527748,0.001753,70226.0,70224.0,0.014247]
[1771068528052,0.014247,70228.0,70222.0,0.014248]
[1771068528248,0.028807,70228.0,70222.0,0.014248]
[1771068528450,0.014246,70231.0,70225.0,0.014247]
[1771068528949,0.014247,70228.0,70224.0,0.01456]
[1771068529156,0.014247,70226.0,70222.0,0.01456]
[1771068529448,0.014246,70232.0,70222.0,0.01456]
[1771068529658,0.014247,70228.0,70222.0,0.01456]
[1771068530049,0.014247,70227.0,70222.0,0.01456]
[1771068530249,0.014246,70232.0,70224.0,0.014247]
[1771068530450,0.014246,70232.0,70226.0,0.014247]
[1771068530650,0.014246,70232.0,70225.0,0.014247]
[1771068530850,0.014247,70227.0,70222.0,0.01456]
[1771068531245,0.014246,70232.0,70222.0,0.028808]
[1771068531246,0.014247,70229.0,70222.0,0.028808]
[1771068531451,0.014244,70240.0,70230.0,0.014246]
[1771068531657,0.01456,70239.0,70229.0,0.014246]
[1771068531853,0.014245,70236.0,70230.0,0.014246]
[1771068532155,0.014245,70235.0,70230.0,0.014246]
[1771068532450,0.028805,70239.0,70231.0,0.014246]
[1771068532656,0.014245,70238.0,70233.0,0.014246]
[1771068532857,0.014244,70243.0,70234.0,0.014245]
[1771068533057,0.01456,70242.0,70238.0,0.014245]
[1771068533357,0.3253133,70251.0,70238.0,0.014245]
[1771068533358,0.014238,70270.0,70254.0,0.014241]
[1771068533553,0.014243,70247.0,70239.0,0.014244]
[1771068533754,0.014242,70251.0,70245.0,0.014243]
[1771068533949,0.014242,70253.0,70242.0,0.01456]
[1771068534159,0.014243,70246.0,70242.0,0.01456]
[1771068534757,0.014243,70247.0,70242.0,0.01456]
[1771068535257,0.014243,70245.0,70242.0,0.01456]
[1771068535454,0.014243,70245.0,70241.0,0.01456]
[1771068535455,0.014244,70243.0,70241.0,0.01456]
[1771068535656,0.014243,70245.0,70241.0,0.000626]
[1771068535954,0.014243,70246.0,70241.0,0.000626]
[1771068536154,0.014243,70245.0,70241.0,0.01456]
[1771068536350,0.01456,70250.0,70242.0,0.014244]
[1771068536558,0.014243,70247.0,70241.0,0.01456]
[1771068536758,0.014243,70245.0,70241.0,0.01456]
[1771068537159,0.01456,70250.0,70241.0,0.01456]
[1771068537359,0.014243,70245.0,70241.0,0.01456]
[1771068537561,0.028802,70250.0,70241.0,0.01456]
[1771068537761,0.014243,70246.0,70241.0,0.01456]
[1771068537962,0.014243,70249.0,70241.0,0.028804]
[1771068538152,0.014243,70246.0,70241.0,0.028804]
[1771068538353,0.014243,70247.0,70242.0,0.014244]
[1771068538553,0.014242,70249.0,70244.0,0.014243]
[1771068538758,0.01452,70249.0,70241.0,0.01456]
[1771068538965,0.014244,70244.0,70241.0,0.01456]
[1771068539165,0.014243,70246.0,70241.0,0.01456]
[1771068539665,0.014243,70248.0,70241.0,0.01456]
[1771068539860,0.014243,70246.0,70241.0,0.01456]
[1771068540261,0.014243,70246.0,70241.0,0.028804]
[1771068540967,0.01452,70249.0,70241.0,0.028804]
[1771068541164,0.01452,70249.0,70241.0,0.01456]
[1771068541365,0.014244,70242.0,70240.0,0.01452]
[1771068541566,0.014243,70246.0,70240.0,0.01452]
[1771068541962,0.32680927,70252.0,70220.0,0.014248]
[1771068541963,0.32680927,70238.0,70220.0,0.014248]
[1771068542160,0.014248,70224.0,70221.0,0.01452]
[1771068542362,0.014247,70226.0,70221.0,0.028768]
[1771068542558,0.014248,70223.0,70221.0,0.01452]
[1771068542771,0.014248,70221.0,70218.0,0.01452]
[1771068542966,0.014248,70220.0,70218.0,0.01452]
[1771068543270,0.01452,70227.0,70218.0,0.014249]
[1771068543271,0.014248,70223.0,70218.0,0.014249]
[1771068543468,0.014247,70225.0,70218.0,0.014249]
[1771068544663,0.014247,70225.0,70211.0,0.36647043]
[1771068544664,0.01452,70227.0,70210.0,0.14248]
[1771068544858,0.014248,70222.0,70211.0,0.01452]
[1771068545163,0.014248,70222.0,70217.0,0.014249]
[1771068545364,0.014247,70226.0,70217.0,0.014249]
[1771068545562,0.014248,70222.0,70217.0,0.014249]
[1771068545763,0.014248,70223.0,70218.0,0.014249]
[1771068545965,0.014247,70228.0,70219.0,0.014248]
[1771068546276,0.014248,70222.0,70218.0,0.014249]
[1771068546763,0.014248,70223.0,70218.0,0.014249]
[1771068547763,0.014248,70222.0,70216.0,0.014249]
[1771068548170,0.028496,70222.0,70216.0,0.014249]
[1771068548371,0.014248,70220.0,70215.0,0.028769]
[1771068549172,0.014249,70219.0,70215.0,0.01452]
[1771068549368,0.014248,70221.0,70215.0,0.01452]
[1771068549673,0.014249,70219.0,70215.0,0.028769]
[1771068549869,0.014248,70221.0,70215.0,0.028769]
[1771068550173,0.014249,70217.0,70215.0,0.01452]
[1771068550373,0.014248,70221.0,70215.0,0.01452]
[1771068550576,0.014249,70219.0,70215.0,0.01452]
[1771068550774,0.014248,70222.0,70215.0,0.01452]
[1771068551069,0.014249,70218.0,70215.0,0.01452]
[1771068551374,0.014249,70218.0,70214.0,0.01452]
[1771068552167,0.014249,70218.0,70214.0,0.02877]
[1771068552569,0.014249,70219.0,70214.0,0.02877]
[1771068553873,0.028498,70219.0,70214.0,0.02877]
[1771068554075,0.01245196,70219.0,70214.0,0.02877]
[1771068554473,0.014249,70218.0,70214.0,0.01452]
[1771068554672,0.014248,70221.0,70214.0,0.01452]
[1771068554870,0.014249,70217.0,70214.0,0.01452]
[1771068555070,0.014249,70218.0,70214.0,0.01452]
[1771068555368,0.014249,70219.0,70214.0,0.01452]
[1771068555676,0.028498,70217.0,70214.0,0.01452]
[1771068555977,0.014249,70218.0,70214.0,0.01452]
[1771068556477,0.014248,70221.0,70214.0,0.028769]
[1771068556677,0.014248,70221.0,70216.0,0.014249]
[1771068556878,0.014248,70220.0,70215.0,0.014249]
[1771068557776,0.014249,70219.0,70215.0,0.014249]
[1771068557978,0.014249,70217.0,70214.0,0.01452]
[1771068558165,0.014249,70219.0,70214.0,0.01452]
[1771068558370,0.014249,70219.0,70212.0,0.0285]